[Event "S. A. Group BAN-chT 2018"]
[Site "Dhaka"]
[Date "2018.12.08"]
[Round "3"]
[White "Sidhant, Mohapatra"]
[Black "Khan, Jewel"]
[Result "1-0"]
[ECO "E01"]
[WhiteElo "2343"]
[BlackElo "1957"]
[Annotator "NA"]
[PlyCount "79"]
[EventDate "2018.12.07"]
[EventType "team-tourn"]
[EventCountry "BAN"]
[SourceTitle "playchess.com"]
[Source "ChessBase"]
[SourceQuality "1"]
[TimeControl "5400+30"]

1. Nf3 {[%emt 0:00:00]} Nf6 {[%emt 0:19:38]} 2. c4 {[%emt 0:00:30]} e6 {[%emt 0:00:49]} 3. g3 {[%emt 0:01:03]} d5 {[%emt 0:01:10]} 4. Bg2 {[%emt 0:00:09]} Bd6 {[%emt 0:01:45]} 5. O-O {[%emt 0:00:35]} O-O {[%emt 0:00:19]} 6. Qc2 {[%emt 0:00:59]} c6 {[%emt 0:01:21]} 7. d4 {[%emt 0:00:12]} Nbd7 {[%emt 0:00:44]} 8. Nbd2 {[%emt 0:00:10]} Qc7 {[%emt 0:07:15] LiveBook: 4 Games} 9. b3 {[%emt 0:03:18]} b6 {[%emt 0:00:42]} 10. Bb2 {[%emt 0:00:35]} Bb7 {[%emt 0:00:18]} 11. Rac1 {[%emt 0:00:12]} Rac8 {[%emt 0:00:43]} 12. Rfd1 {[%emt 0:01:07]} Qb8 {[%emt 0:02:15]} 13. e4 {[%emt 0:00:55]} Nxe4 {[%emt 0:01:21]} 14. Nxe4 {[%emt 0:00:11]} dxe4 {[%emt 0:00:09]} 15. Qxe4 {[%emt 0:00:05]} Nf6 {[%emt 0:00:48]} 16. Qe2 {[%emt 0:04:05]} Nd7 {[%emt 0:09:40]} 17. c5 {[%emt 0:11:40]} Be7 {[%emt 0:02:03]} 18. b4 {[%emt 0:00:07]} Rfe8 {[%emt 0:03:42]} 19. a4 {[%emt 0:01:24]} a6 {[%emt 0:03:31]} 20. h4 {[%emt 0:03:45]} Bf6 {[%emt 0:03:22]} 21. Ne5 {[%emt 0:01:09]} Nxe5 {[%emt 0:05:46]} 22. dxe5 {[%emt 0:00:27]} Be7 {[%emt 0:00:11]} 23. h5 {[%emt 0:06:41]} a5 {[%emt 0:01:48]} 24. h6 {[%emt 0:03:15]} g6 {[%emt 0:00:57]} 25. bxa5 {[%emt 0:00:57]} bxa5 {[%emt 0:02:41]} 26. Qe3 {[%emt 0:01:25]} Ba6 {[%emt 0:03:58]} 27. Ba3 {[%emt 0:01:50]} f6 {[%emt 0:02:47]} (27... Rc7 $16 28. Qc3 Rec8) 28. exf6 {[%emt 0:00:27]} Bxf6 {[%emt 0:00:13]} 29. Rd6 {[%emt 0:00:24]} Re7 $18 {[%emt 0:03:17]} (29... Qb7 $142 30. Bh3 (30. Rxe6 Qf7 $18) 30... Kh8) 30. Bxc6 {[%emt 0:01:50]} Kf7 {[%emt 0:04:26]} 31. Bd7 {[%emt 0:00:49]} Qxd6 {[%emt 0:01:17]} 32. cxd6 {[%emt 0:00:50]} Rxd7 {[%emt 0:01:25]} 33. Rxc8 {[%emt 0:01:17]} Bxc8 {[%emt 0:00:08]} 34. Qc5 {[%emt 0:01:29]} Bb7 {[%emt 0:01:23]} 35. Qb5 {[%emt 0:00:25]} Ke8 {[%emt 0:00:15]} 36. Bb2 {[%emt 0:00:19]} Bxb2 {[%emt 0:03:30]} 37. Qxb2 {[%emt 0:00:12]} Rf7 {[%emt 0:03:06]} 38. Qh8+ {[%emt 0:01:45]} Kd7 {[%emt 0:00:14]} 39. Qg8 {[%emt 0:00:19]} Rf5 {[%emt 0:03:23]} 40. Qxh7+ {[%emt 0:00:08]} 1-0

[Event "S. A. Group BAN-chT 2018"]
[Site "Dhaka"]
[Date "2018.12.08"]
[Round "3"]
[White "Mehdi Hasan Parag"]
[Black "Arpan, Das"]
[Result "1/2-1/2"]
[ECO "C55"]
[WhiteElo "2218"]
[BlackElo "2186"]
[Annotator "NA"]
[PlyCount "71"]
[EventDate "2018.12.07"]
[EventType "team-tourn"]
[EventCountry "BAN"]
[SourceTitle "playchess.com"]
[Source "ChessBase"]
[SourceQuality "1"]
[TimeControl "5400+30"]

1. e4 {[%emt 0:00:00]} e5 {[%emt 0:00:00]} 2. Nf3 {[%emt 0:00:00]} Nc6 {[%emt 0:00:00]} 3. Bc4 {[%emt 0:00:01]} Nf6 {[%emt 0:00:00]} 4. d3 {[%emt 0:00:10]} Be7 {[%emt 0:00:04]} 5. O-O {[%emt 0:00:12]} O-O {[%emt 0:00:04]} 6. Re1 {[%emt 0:00:10]} d6 {[%emt 0:00:23]} 7. a4 {[%emt 0:00:15]} Na5 {[%emt 0:00:07]} 8. Ba2 {[%emt 0:00:16] C55: Two Knights: 4 d3, 4 d4 exd4 5 e5 and Max Lange Attack} c5 {[%emt 0:00:03]} 9. c3 {[%emt 0:02:11]} Nc6 {[%emt 0:00:06]} 10. Na3 {[%emt 0:00:22]} h6 {[%emt 0:00:23]} (10... a6 11. Nc2 h6 12. Ne3 Re8 13. h3 Bf8 14. Nd5 Rb8 15. Be3 Be6 {½-½ (43) Van Foreest,J (2629)-Harikrishna,P (2744) Riadh 2017}) 11. h3 {[%emt 0:03:01]} Be6 {[%emt 0:00:29]} 12. Bxe6 {[%emt 0:01:37]} fxe6 {[%emt 0:00:03]} 13. Nc4 {[%emt 0:00:40]} Nh7 $146 {[%emt 0:04:17]} ({Predecessor:} 13... Rc8 14. Bd2 {1-0 (51) Sammed Jaykumar,S (2320)-Wagh,S (2207) Kankarbagh 2017}) 14. b3 {[%emt 0:13:55]} Ng5 {[%emt 0:00:24]} 15. Nxg5 {[%emt 0:01:54]} Bxg5 {[%emt 0:00:38]} 16. Bxg5 {[%emt 0:09:35]} hxg5 {[%emt 0:00:06]} 17. Qg4 {[%emt 0:05:16]} Qe7 {[%emt 0:00:42]} 18. Qg3 {[%emt 0:00:20]} Rf4 {[%emt 0:02:36]} 19. Ne3 {[%emt 0:02:25]} Raf8 {[%emt 0:00:39]} 20. Ng4 $14 {[%emt 0:00:57]} d5 {[%emt 0:01:17]} 21. exd5 {[%emt 0:10:53]} exd5 {[%emt 0:00:41]} 22. Ra2 {[%emt 0:02:54]} d4 {[%emt 0:05:24]} 23. c4 {[%emt 0:01:40]} Qc7 {[%emt 0:00:52]} 24. Rae2 {[%emt 0:01:58]} R8f5 {[%emt 0:03:01]} 25. f3 {[%emt 0:02:40]} Qb6 {[%emt 0:05:11]} 26. Nxe5 {[%emt 0:02:55]} Nxe5 {[%emt 0:01:18]} 27. Rxe5 {[%emt 0:00:02]} Qxb3 {[%emt 0:00:41]} 28. Rxf5 {[%emt 0:02:17]} Rxf5 {[%emt 0:00:09]} 29. Re8+ {[%emt 0:05:00]} Kf7 {[%emt 0:03:09]} 30. Qe1 {[%emt 0:01:20]} Rf6 {[%emt 0:07:49]} 31. Qe7+ {[%emt 0:02:50]} Kg6 {[%emt 0:00:06]} 32. Qe4+ {[%emt 0:00:18]} Kf7 {[%emt 0:00:07]} 33. Qe7+ {[%emt 0:07:34]} Kg6 {[%emt 0:00:06]} 34. Rg8 {[%emt 0:00:53]} Qd1+ {[%emt 0:04:54]} 35. Kh2 {[%emt 0:00:32]} Qxd3 {[%emt 0:00:11]} 36. Qxg7+ {[%emt 0:00:37]} 1/2-1/2

[Event "S. A. Group BAN-chT 2018"]
[Site "Dhaka"]
[Date "2018.12.08"]
[Round "3"]
[White "Mohammed Abdul, Malek"]
[Black "Mohammad Minhaz Uddin"]
[Result "1/2-1/2"]
[ECO "C42"]
[WhiteElo "2208"]
[BlackElo "2290"]
[Annotator "NA"]
[PlyCount "125"]
[EventDate "2018.12.07"]
[EventType "team-tourn"]
[EventCountry "BAN"]
[SourceTitle "playchess.com"]
[Source "ChessBase"]
[SourceQuality "1"]
[TimeControl "5400+30"]

1. e4 {[%emt 0:00:00]} e5 {[%emt 0:17:16]} 2. Nf3 {[%emt 0:00:00]} Nf6 {[%emt 0:01:25]} 3. Nxe5 {[%emt 0:00:00]} d6 {[%emt 0:00:03]} 4. Nf3 {[%emt 0:00:00]} Nxe4 {[%emt 0:00:10]} 5. Qe2 {[%emt 0:00:24]} Qe7 {[%emt 0:00:08]} 6. d3 {[%emt 0:00:05]} Nf6 {[%emt 0:00:15]} 7. Bg5 {[%emt 0:00:10]} Be6 {[%emt 0:00:36]} 8. Nc3 {[%emt 0:03:21]} c6 {[%emt 0:03:50] C42: Petroff Defence: 3 Nxe5 and unusual White 3rd moves} 9. h3 $146 {[%emt 0:02:01]} ({Predecessor:} 9. O-O-O Nbd7 10. Nd4 O-O-O 11. f4 h6 12. Bh4 g5 13. fxg5 Nh7 14. Nxe6 fxe6 15. Bf2 Qxg5+ 16. Kb1 {0-1 (78) Meylan,A (2179)-Vitoux,C (2384) Brest 2018}) 9... h6 {[%emt 0:01:12]} 10. Bh4 {[%emt 0:00:36]} g5 {[%emt 0:02:51]} 11. Bg3 {[%emt 0:00:19]} Nh5 {[%emt 0:00:14]} 12. Bh2 {[%emt 0:01:01]} Bg7 {[%emt 0:00:43]} 13. d4 {[%emt 0:06:29]} Nd7 {[%emt 0:08:26]} 14. O-O-O {[%emt 0:01:09]} Nb6 {[%emt 0:01:43]} 15. Kb1 {[%emt 0:03:11]} Nf6 {[%emt 0:07:00]} 16. Qd2 {[%emt 0:03:25]} O-O-O {[%emt 0:00:25]} 17. Bd3 {[%emt 0:00:21]} Qc7 {[%emt 0:04:56]} 18. Rhe1 $14 {[%emt 0:01:52]} Nc4 {[%emt 0:03:03]} 19. Qe2 {[%emt 0:01:03]} b5 {[%emt 0:01:31]} 20. Bxc4 {[%emt 0:04:32]} Bxc4 {[%emt 0:00:56]} 21. Qd2 {[%emt 0:02:12]} Be6 {[%emt 0:03:25]} 22. a3 {[%emt 0:06:59]} Rhe8 {[%emt 0:08:00]} 23. Ng1 {[%emt 0:03:51]} Nd5 {[%emt 0:01:16]} 24. Nxd5 {[%emt 0:00:18]} Bxd5 {[%emt 0:00:05]} 25. Rxe8 {[%emt 0:01:32]} Rxe8 {[%emt 0:00:03]} 26. f4 {[%emt 0:00:49]} f6 {[%emt 0:02:16]} 27. g4 {[%emt 0:01:08]} Bf8 {[%emt 0:03:00]} 28. Re1 {[%emt 0:01:56]} Rxe1+ {[%emt 0:01:59]} 29. Qxe1 {[%emt 0:00:02]} Qe7 {[%emt 0:02:02]} 30. Qxe7 {[%emt 0:00:21]} Bxe7 {[%emt 0:00:03]} 31. Kc1 {[%emt 0:00:45]} Kd7 {[%emt 0:03:13]} 32. Kd2 {[%emt 0:00:20]} Be4 {[%emt 0:00:32]} 33. c3 {[%emt 0:01:15]} Ke6 {[%emt 0:08:50]} 34. f5+ {[%emt 0:07:40]} Kd5 {[%emt 0:00:36]} 35. b3 {[%emt 0:05:33]} a5 {[%emt 0:01:25]} 36. Ne2 {[%emt 0:00:15]} c5 {[%emt 0:06:40]} 37. c4+ {[%emt 0:01:54]} bxc4 {[%emt 0:03:30]} 38. Nc3+ {[%emt 0:00:20]} Kxd4 {[%emt 0:02:44]} 39. Bg1+ {[%emt 0:00:10]} Ke5 {[%emt 0:00:01]} 40. Ke3 {[%emt 0:02:13]} Bxf5 {[%emt 0:00:02]} 41. Bh2+ {[%emt 0:00:43]} Ke6 {[%emt 0:00:01]} 42. gxf5+ {[%emt 0:00:26]} Kxf5 {[%emt 0:00:03]} 43. bxc4 {[%emt 0:00:29]} Ke6 {[%emt 0:00:03]} 44. a4 {[%emt 0:00:40]} f5 {[%emt 0:00:06]} 45. Nd5 {[%emt 0:00:11]} Bf8 {[%emt 0:02:15]} 46. Kf3 {[%emt 0:01:07]} Bg7 {[%emt 0:02:59]} 47. Bg3 {[%emt 0:00:26]} Be5 {[%emt 0:01:06]} 48. Be1 {[%emt 0:00:10]} h5 {[%emt 0:00:01]} 49. Bxa5 {[%emt 0:03:10]} g4+ {[%emt 0:00:02]} 50. Kg2 {[%emt 0:01:52]} f4 {[%emt 0:00:06]} 51. hxg4 {[%emt 0:01:50]} hxg4 {[%emt 0:00:02]} 52. Bc3 {[%emt 0:01:32]} f3+ {[%emt 0:01:26]} 53. Kf2 {[%emt 0:00:34]} Bd4+ {[%emt 0:00:38]} 54. Bxd4 {[%emt 0:00:37]} cxd4 {[%emt 0:00:02]} 55. a5 {[%emt 0:00:03]} Kd7 {[%emt 0:00:24]} 56. Nb4 {[%emt 0:00:20]} Kc7 {[%emt 0:00:30]} 57. Kg3 {[%emt 0:00:44]} Kb7 {[%emt 0:00:00]} 58. Nd3 {[%emt 0:01:51]} Ka6 {[%emt 0:00:01]} 59. Kxg4 {[%emt 0:00:19]} f2 {[%emt 0:00:05]} 60. Nxf2 {[%emt 0:00:14]} Kxa5 {[%emt 0:00:01]} 61. Nd3 {[%emt 0:03:42]} Ka4 {[%emt 0:00:10]} 62. Kf4 {[%emt 0:00:28]} Kb3 {[%emt 0:00:04]} 63. c5 {[%emt 0:00:24]} 1/2-1/2

[Event "S. A. Group BAN-chT 2018"]
[Site "Dhaka"]
[Date "2018.12.08"]
[Round "3"]
[White "Uten"]
[Black "Mohammed, Mainuddin"]
[Result "1-0"]
[ECO "E14"]
[WhiteElo "2114"]
[BlackElo "1950"]
[Annotator "NA"]
[PlyCount "85"]
[EventDate "2018.12.07"]
[EventType "team-tourn"]
[EventCountry "BAN"]
[SourceTitle "playchess.com"]
[Source "ChessBase"]
[SourceQuality "1"]
[TimeControl "5400+30"]

1. d4 {[%emt 1:30:30]} d5 {[%emt 1:30:30]} 2. Nf3 {[%emt 0:00:30]} Nf6 {[%emt 0:00:30]} 3. c4 {[%emt 0:00:30]} e6 {[%emt 0:00:30]} 4. e3 {[%emt 0:00:30]} Be7 {[%emt 0:00:30]} 5. Nc3 {[%emt 0:00:30]} O-O {[%emt 0:00:30]} 6. Bd3 {[%emt 0:00:30]} b6 {[%emt 0:00:30]} 7. e4 {[%emt 0:00:30]} dxe4 {[%emt 0:00:30]} 8. Nxe4 {[%emt 0:00:30]} Bb7 {[%emt 0:00:30]} 9. Qc2 {[%emt 0:00:30]} Nbd7 {[%emt 0:00:30]} 10. O-O {[%emt 0:00:30]} Nxe4 {[%emt 0:00:30]} 11. Bxe4 {[%emt 0:00:30]} Bxe4 {[%emt 0:00:30]} 12. Qxe4 {[%emt 0:00:30]} Nf6 {[%emt 0:00:30] E14: Queen's Indian: Classical Variation (4 e3)} (12... c5 13. Bf4 cxd4 14. Nxd4 Nf6 15. Qd3 Qc8 16. Rad1 Qc5 17. b4 Qh5 18. Nc6 Rfe8 19. h3 Rac8 20. b5 {1-0 (36) Slobodjan,R (2555)-Votava,J (2540) Germany 2009}) 13. Qe2 {[%emt 0:00:30]} c5 {[%emt 0:00:30]} 14. Rd1 {[%emt 0:00:30]} cxd4 {[%emt 0:00:30]} 15. Nxd4 {[%emt 0:00:30]} Qc7 {[%emt 0:00:30]} 16. b3 {[%emt 0:00:30]} Rad8 {[%emt 0:00:30]} 17. Bb2 {[%emt 0:00:30]} Qb7 $146 {[%emt 0:00:30]} ({Predecessor:} 17... a6 18. Rd3 g6 19. Re1 Nh5 20. g3 {½-½ (58) Forman,S (2278)-Postupa,M (2125) Czech Republic 2016}) 18. Rd3 {[%emt 0:00:30]} Rd7 {[%emt 0:00:30]} 19. Rad1 {[%emt 0:00:30]} Rfd8 {[%emt 0:00:30]} 20. Nb5 {[%emt 0:00:30]} Rxd3 {[%emt 0:00:30]} 21. Rxd3 $11 {[%emt 0:00:30]} Rxd3 {[%emt 0:00:30]} 22. Qxd3 {[%emt 0:00:30]} Ne8 {[%emt 0:00:30]} 23. Be5 {[%emt 0:00:30]} h6 {[%emt 0:00:30]} 24. h3 {[%emt 0:00:30]} a6 {[%emt 0:00:30]} 25. Nc7 {[%emt 0:00:30]} Qc8 {[%emt 0:00:30]} 26. Nxe8 {[%emt 0:00:30]} Qxe8 {[%emt 0:00:30]} 27. Qg3 {[%emt 0:00:30]} Bf8 {[%emt 0:00:30]} 28. Bd4 {[%emt 0:00:30]} Qd8 {[%emt 0:00:30]} 29. Qe3 {[%emt 0:00:30]} b5 {[%emt 0:00:30]} 30. c5 {[%emt 0:00:30]} Qd5 {[%emt 0:00:30]} 31. Qc3 {[%emt 0:00:30]} e5 {[%emt 0:00:30]} 32. Be3 {[%emt 0:00:30]} e4 {[%emt 0:00:30]} 33. Qd4 {[%emt 0:00:30]} Qc6 {[%emt 0:00:30]} 34. Qd8 {[%emt 0:00:30]} f6 {[%emt 0:00:30]} 35. b4 {[%emt 0:00:30]} Kf7 {[%emt 0:00:30]} 36. Qb6 {[%emt 0:00:30]} Qc8 {[%emt 0:00:30]} 37. Bf4 {[%emt 0:00:30]} Ke8 {[%emt 0:00:30]} 38. a3 {[%emt 0:00:30]} Kd7 {[%emt 0:00:30]} 39. g4 {[%emt 0:00:30]} Qc6 {[%emt 0:00:30]} 40. Qa7+ {[%emt 0:00:30]} Ke6 {[%emt 0:00:30]} 41. Qb8 {[%emt 0:00:30]} Be7 {[%emt 0:00:30]} 42. Qg8+ {[%emt 0:00:30]} Kd7 {[%emt 0:00:30]} 43. Qxg7 {[%emt 0:00:30]} 1-0

[Event "S. A. Group BAN-chT 2018"]
[Site "Dhaka"]
[Date "2018.12.08"]
[Round "3"]
[White "Hasan Md, Emam"]
[Black "Anisuzzaman, Jewel"]
[Result "0-1"]
[ECO "B07"]
[WhiteElo "2076"]
[BlackElo "1902"]
[Annotator "NA"]
[PlyCount "58"]
[EventDate "2018.12.07"]
[EventType "team-tourn"]
[EventCountry "BAN"]
[SourceTitle "playchess.com"]
[Source "ChessBase"]
[SourceQuality "1"]
[TimeControl "5400+30"]

1. e4 {[%emt 0:04:26]} d6 {[%emt 0:00:04]} 2. d4 {[%emt 0:00:02]} Nf6 {[%emt 0:01:25]} 3. Nc3 {[%emt 0:00:03]} g6 {[%emt 0:00:29]} 4. Be3 {[%emt 0:00:43]} a6 {[%emt 0:01:27]} 5. Qd2 {[%emt 0:00:46]} b5 {[%emt 0:01:04]} 6. f3 {[%emt 0:02:26]} Nbd7 {[%emt 0:04:06]} 7. a4 {[%emt 0:08:09]} b4 {[%emt 0:01:33]} 8. Na2 {[%emt 0:01:52]} a5 {[%emt 0:03:05]} 9. c3 {[%emt 0:00:46]} c5 {[%emt 0:05:44]} 10. dxc5 {[%emt 0:01:46]} dxc5 {[%emt 0:04:46]} 11. Rd1 {[%emt 0:06:12]} e6 $11 {[%emt 0:04:50]} 12. Nc1 {[%emt 0:11:45]} Be7 {[%emt 0:13:57]} 13. Nb3 {[%emt 0:01:36]} Qc7 {[%emt 0:03:04]} 14. cxb4 {[%emt 0:11:10]} axb4 {[%emt 0:01:41]} 15. Rc1 {[%emt 0:01:03]} O-O {[%emt 0:01:15]} 16. a5 {[%emt 0:01:47]} Qa7 {[%emt 0:10:01]} 17. Qf2 {[%emt 0:02:59]} Ba6 {[%emt 0:05:10]} 18. Nxc5 {[%emt 0:09:14]} Nxc5 {[%emt 0:00:43]} 19. Bxc5 {[%emt 0:00:15]} Bxc5 {[%emt 0:00:39]} 20. Rxc5 {[%emt 0:03:23]} Bxf1 {[%emt 0:02:36]} 21. Kxf1 {[%emt 0:00:03]} Rfd8 {[%emt 0:00:17]} 22. g3 {[%emt 0:05:06]} Nd7 {[%emt 0:09:07]} 23. Rb5 {[%emt 0:03:16]} Qc7 {[%emt 0:03:48]} 24. Ne2 {[%emt 0:04:17]} Qc4 {[%emt 0:00:50]} 25. Rb7 {[%emt 0:01:55]} Rxa5 {[%emt 0:03:31]} 26. Kg2 {[%emt 0:00:17]} Ne5 {[%emt 0:01:13]} 27. Rc1 {[%emt 0:01:16]} Qa6 {[%emt 0:02:33]} 28. Rb6 {[%emt 0:14:28]} Qa7 {[%emt 0:00:45]} 29. Rxb4 {[%emt 0:01:37]} Qxf2+ {[%emt 0:00:16]} 0-1

[Event "S. A. Group BAN-chT 2018"]
[Site "Dhaka"]
[Date "2018.12.08"]
[Round "3"]
[White "Hamid, Rani"]
[Black "Sai Agni Jeevitesh, J."]
[Result "1/2-1/2"]
[ECO "C11"]
[WhiteElo "1932"]
[BlackElo "2336"]
[Annotator "NA"]
[PlyCount "136"]
[EventDate "2018.12.07"]
[EventType "team-tourn"]
[EventCountry "BAN"]
[SourceTitle "playchess.com"]
[Source "ChessBase"]
[SourceQuality "1"]
[TimeControl "5400+30"]

1. e4 {[%emt 1:30:30]} e6 {[%emt 1:30:30]} 2. d4 {[%emt 0:00:30]} d5 {[%emt 0:00:30]} 3. Nc3 {[%emt 0:00:30]} Nf6 {[%emt 0:00:30]} 4. e5 {[%emt 0:00:30]} Nfd7 {[%emt 0:00:30]} 5. f4 {[%emt 0:00:30]} c5 {[%emt 0:00:30]} 6. Nf3 {[%emt 0:00:30]} Be7 {[%emt 0:00:30] C11: French: Classical System: 4 e5 and 4 Bg5 dxe4} (6... Nc6 7. Be3 Qb6 8. Na4 Qa5+ 9. c3 b6 10. Bd2 c4 11. b4 Qa6 12. Be2 Be7 13. O-O f5 14. Qc2 O-O 15. Kh1 Qb7 16. Rg1 Rf7 17. g4 b5 18. gxf5 Rxf5 19. Nc5 Nxc5 20. bxc5 {0-1 (57) Karjakin,S (2773)-Duda,J (2737) chess.com INT 2018}) 7. Be3 {[%emt 0:00:30]} b6 {[%emt 0:00:30]} 8. Be2 {[%emt 0:00:30]} O-O {[%emt 0:00:30]} 9. O-O {[%emt 0:00:30]} Nc6 {[%emt 0:00:30]} 10. a3 {[%emt 0:00:30]} Bb7 {[%emt 0:00:30]} 11. Qe1 {[%emt 0:00:30]} f5 $146 {[%emt 0:00:30]} ({Predecessor:} 11... f6 12. exf6 Bxf6 13. Rd1 Qe7 14. Qf2 Rae8 15. Rfe1 cxd4 16. Nxd4 Nxd4 17. Bxd4 {0-1 (56) Dorst,J (2253)-Karabalis,H (2283) Germany 2015}) 12. Qg3 {[%emt 0:00:30]} cxd4 {[%emt 0:00:30]} 13. Nxd4 {[%emt 0:00:30]} Nxd4 {[%emt 0:00:30]} 14. Bxd4 {[%emt 0:00:30]} Qc8 {[%emt 0:00:30]} 15. Rad1 {[%emt 0:00:30]} (15. b4 $14) 15... Ba6 {[%emt 0:00:30]} 16. Rd2 {[%emt 0:00:30]} Bxe2 {[%emt 0:00:30]} 17. Nxe2 {[%emt 0:00:30]} Nc5 {[%emt 0:00:30]} 18. Bxc5 {[%emt 0:00:30]} Bxc5+ {[%emt 0:00:30]} 19. Kh1 {[%emt 0:00:30]} b5 {[%emt 0:00:30]} 20. Qd3 {[%emt 0:00:30]} Qc6 {[%emt 0:00:30]} 21. Rf3 {[%emt 0:00:30]} Rfc8 {[%emt 0:00:30]} 22. Rh3 {[%emt 0:00:30]} g6 {[%emt 0:00:30]} 23. Qf3 {[%emt 0:00:30]} a5 {[%emt 0:00:30]} 24. Rg3 {[%emt 0:00:30]} b4 {[%emt 0:00:30]} 25. h4 {[%emt 0:00:30]} bxa3 {[%emt 0:00:30]} 26. bxa3 {[%emt 0:00:30]} Ra7 {[%emt 0:00:30]} 27. h5 {[%emt 0:00:30]} Rg7 {[%emt 0:00:30]} 28. Rd3 {[%emt 0:00:30]} Rcc7 {[%emt 0:00:30]} 29. Rb3 {[%emt 0:00:30]} Ba7 $11 {[%emt 0:00:30]} 30. Rc3 {[%emt 0:00:30]} Qb6 {[%emt 0:00:30]} 31. Kh2 {[%emt 0:00:30]} Rxc3 {[%emt 0:00:30]} 32. Qxc3 {[%emt 0:00:30]} Rc7 {[%emt 0:00:30]} 33. Qf3 {[%emt 0:00:30]} Qf2 {[%emt 0:00:30]} 34. Qd3 {[%emt 0:00:30]} Rc4 {[%emt 0:00:30]} 35. hxg6 {[%emt 0:00:30]} Rxf4 {[%emt 0:00:30]} 36. gxh7+ {[%emt 0:00:30]} Kh8 {[%emt 0:00:30]} 37. Rh3 {[%emt 0:00:30]} Rg4 {[%emt 0:00:30]} 38. Qf3 {[%emt 0:00:30]} Qxf3 {[%emt 0:00:30]} 39. gxf3 {[%emt 0:00:30]} Rc4 {[%emt 0:00:30]} 40. c3 {[%emt 0:00:30]} Bb8 {[%emt 0:00:30]} 41. f4 {[%emt 0:00:30]} Re4 42. Nd4 {[%emt 0:00:30]} Rxf4 {[%emt 0:01:00]} 43. Nc6 {[%emt 0:00:30]} Bc7 44. Rh6 {[%emt 0:00:30]} Rg4 {[%emt 0:01:00]} 45. Rxe6 {[%emt 0:00:30]} Bb6 {[%emt 0:00:30]} 46. Ne7 {[%emt 0:00:30]} Bg1+ {[%emt 0:00:30]} 47. Kh1 {[%emt 0:00:30]} d4 {[%emt 0:00:30]} 48. cxd4 {[%emt 0:00:30]} Bxd4 {[%emt 0:00:30]} 49. Nxf5 {[%emt 0:00:30]} Kxh7 {[%emt 0:00:30]} 50. Rh6+ {[%emt 0:00:30]} Kg8 {[%emt 0:00:30]} 51. e6 {[%emt 0:00:30]} Bc5 {[%emt 0:00:30]} 52. Rh5 {[%emt 0:00:30]} Rg1+ {[%emt 0:00:30]} 53. Kh2 {[%emt 0:00:30]} Re1 {[%emt 0:00:30]} 54. Nh6+ {[%emt 0:00:30]} Kg7 {[%emt 0:00:30]} 55. Rxc5 {[%emt 0:00:30]} Kxh6 {[%emt 0:00:30]} 56. Rxa5 {[%emt 0:00:30]} Rxe6 57. Kg3 {[%emt 0:00:30]} Kg6 {[%emt 0:01:00]} 58. Kf4 {[%emt 0:00:30]} Kf7 {[%emt 0:00:30]} 59. Kf5 {[%emt 0:00:30]} Re1 {[%emt 0:00:30]} 60. a4 {[%emt 0:00:30]} Ke7 {[%emt 0:00:30]} 61. Rd5 {[%emt 0:00:30]} Rf1+ {[%emt 0:00:30]} 62. Ke4 {[%emt 0:00:30]} Re1+ {[%emt 0:00:30]} 63. Kf3 {[%emt 0:00:30]} Ke6 {[%emt 0:00:30]} 64. Rd4 {[%emt 0:00:30]} Ke5 {[%emt 0:00:30]} 65. Rh4 {[%emt 0:00:30]} Kd5 {[%emt 0:00:30]} 66. Rh6 {[%emt 0:00:30]} Kc5 {[%emt 0:00:30]} 67. Kf2 {[%emt 0:00:30]} Re4 {[%emt 0:00:30]} 68. a5 {[%emt 0:00:30]} Kb5 {[%emt 0:00:30]} 1/2-1/2

[Event "S. A. Group BAN-chT 2018"]
[Site "Dhaka"]
[Date "2018.12.08"]
[Round "3"]
[White "Sourath Biswas"]
[Black "Zia, Tahsin Tajwar"]
[Result "1/2-1/2"]
[ECO "E62"]
[WhiteElo "1881"]
[BlackElo "1925"]
[Annotator "NA"]
[PlyCount "59"]
[EventDate "2018.12.07"]
[EventType "team-tourn"]
[EventCountry "BAN"]
[SourceTitle "playchess.com"]
[Source "ChessBase"]
[SourceQuality "1"]
[TimeControl "5400+30"]

1. d4 {[%emt 0:00:13]} Nf6 {[%emt 0:00:00]} 2. c4 {[%emt 0:00:30]} g6 {[%emt 0:00:02]} 3. g3 {[%emt 0:02:04]} Bg7 {[%emt 0:00:07]} 4. Bg2 {[%emt 0:00:13]} O-O {[%emt 0:00:25]} 5. Nc3 {[%emt 0:00:22]} d6 {[%emt 0:00:08]} 6. Nf3 {[%emt 0:00:07]} c6 {[%emt 0:00:07]} 7. O-O {[%emt 0:00:06]} Bf5 {[%emt 0:00:14]} 8. b3 {[%emt 0:03:36]} Ne4 {[%emt 0:00:36]} 9. Bb2 {[%emt 0:01:31]} Nxc3 {[%emt 0:00:25]} 10. Bxc3 {[%emt 0:00:11]} Be4 {[%emt 0:00:23]} 11. Ne1 {[%emt 0:02:01] E62: King's Indian: Fianchetto: 6...c6 and Panno Variation (6...Nc6) without ...a6} Bxg2 {[%emt 0:00:14]} 12. Nxg2 {[%emt 0:00:07]} c5 $146 {[%emt 0:06:46]} ({Predecessor:} 12... d5 13. Qd3 e6 14. e4 dxe4 15. Qxe4 Nd7 16. Rfd1 Qb6 17. Ne3 Rfe8 18. Rac1 Rac8 {½-½ (18) Krasenkow,M (2615)-Khalifman,A (2650) Vilnius 1997}) 13. Rc1 {[%emt 0:03:34]} Nc6 {[%emt 0:03:25]} 14. dxc5 {[%emt 0:01:08]} dxc5 {[%emt 0:00:19]} 15. Bxg7 {[%emt 0:00:07]} Kxg7 {[%emt 0:00:13]} 16. Nf4 {[%emt 0:00:42]} e6 {[%emt 0:04:43]} 17. Nd3 {[%emt 0:09:17]} b6 {[%emt 0:02:24]} 18. Qc2 {[%emt 0:02:50]} Nd4 {[%emt 0:02:36]} 19. Qb2 {[%emt 0:00:17]} Qf6 {[%emt 0:00:34]} 20. Kg2 {[%emt 0:00:58]} Nc6 $11 {[%emt 0:09:21]} 21. Qxf6+ {[%emt 0:01:34]} Kxf6 {[%emt 0:00:04]} 22. Rfd1 {[%emt 0:00:12]} Rfd8 {[%emt 0:01:12]} 23. Nf4 {[%emt 0:00:55]} Rxd1 {[%emt 0:01:25]} 24. Rxd1 {[%emt 0:00:09]} Rd8 {[%emt 0:00:06]} 25. Rxd8 {[%emt 0:00:14]} Nxd8 {[%emt 0:00:01]} 26. Kf3 {[%emt 0:01:18]} Ke5 {[%emt 0:00:44]} 27. e3 {[%emt 0:00:34]} Nc6 {[%emt 0:00:38]} 28. Nd3+ {[%emt 0:00:07]} Kd6 {[%emt 0:00:32]} 29. g4 {[%emt 0:00:33]} f6 {[%emt 0:01:35]} 30. Ke4 {[%emt 1:09:30] Ke5+} 1/2-1/2